bitfinex/quotes_SOLUSD_20250818
["timestamp","ask_amount","ask_price","bid_price","bid_amount"]
[1755502604671,2.03148134,181.1,181.09,39.63999999]
[1755502604889,2.03151991,181.1,181.09,39.63999999]
[1755502605259,2.03151991,181.1,181.09,45.16211606]
[1755502605260,1.38151991,181.1,181.09,45.16211606]
[1755502605677,1.38149437,181.1,181.09,45.16211606]
[1755502606073,2.03149437,181.1,181.09,39.63999999]
[1755502606592,2.03151932,181.1,181.09,39.63999999]
[1755502607196,2.03151932,181.1,181.09,45.16211606]
[1755502607197,1.38151932,181.1,181.09,45.16211606]
[1755502609385,8.22068223,181.12,181.09,45.16211606]
[1755502609593,1.38151932,181.11,181.09,45.16211606]
[1755502609782,8.22068223,181.12,181.09,45.16211606]
[1755502609977,1.38151906,181.11,181.09,45.16211606]
[1755502610309,0.06,181.13,181.1,0.69]
[1755502610598,0.69,181.12,181.09,45.16211606]
[1755502612300,7.59068223,181.13,181.09,45.85211606]
[1755502612504,0.75,181.13,181.09,45.85211606]
[1755502613019,0.75,181.13,181.09,53.38279829]
[1755502613218,4.44961756,181.13,181.09,53.38279829]
[1755502613386,0.75,181.13,181.09,45.85211606]
[1755502613719,0.75,181.13,181.09,53.38279829]
[1755502613885,0.06,181.13,181.09,52.69279829]
[1755502614086,3.76398695,181.13,181.1,0.69]
[1755502614406,0.06,181.13,181.1,40.32999999]
[1755502614612,0.75,181.13,181.1,39.63999999]
[1755502614787,0.06,181.13,181.1,40.32999999]
[1755502614985,0.06,181.13,181.11,6.21150626]
[1755502615791,0.75,181.13,181.11,5.52150626]
[1755502617023,8.22068223,181.12,181.1,39.63999999]
[1755502617222,0.69,181.11,181.1,39.63999999]
[1755502617725,8.22068223,181.11,181.1,39.63999999]
[1755502618495,3.70563663,181.12,181.1,39.63999999]
[1755502618496,11.23631886,181.12,181.1,39.63999999]
[1755502618700,7.53068223,181.12,181.1,39.63999999]
[1755502618919,8.22068223,181.12,181.1,39.63999999]
[1755502619294,8.22068223,181.12,181.1,45.16175745]
[1755502619507,7.53068223,181.12,181.1,45.16175745]
[1755502620116,4.45563663,181.13,181.1,45.16175745]
[1755502620296,0.06,181.12,181.11,0.69]
[1755502620827,0.06,181.12,181.1,45.16175745]
[1755502621439,0.06,181.12,181.11,8.22068223]
[1755502621800,0.06,181.12,181.11,0.69]
[1755502622012,0.06,181.12,181.11,8.22068223]
[1755502622437,0.06,181.12,181.11,47.86068222]
[1755502622947,0.06,181.12,181.11,40.32999999]
[1755502623099,0.06,181.12,181.11,45.16150625]
[1755502623740,0.06,181.12,181.11,39.63999999]
[1755502624499,0.06,181.12,181.11,45.16150625]
[1755502624734,0.06,181.12,181.11,53.38218848]
[1755502625238,0.06,181.12,181.11,45.85150625]
[1755502625445,0.06,181.12,181.11,53.38218848]
[1755502626239,0.06,181.12,181.11,45.85150625]
[1755502626434,0.06,181.12,181.11,53.38218848]
[1755502627238,0.06,181.12,181.11,45.85150625]
[1755502627543,0.06,181.12,181.11,53.38218848]
[1755502631134,0.06,181.13,181.11,53.38218848]
[1755502631135,0.06,181.13,181.11,45.85150625]
[1755502631306,0.06,181.13,181.12,47.50068223]
[1755502632324,0.06,181.13,181.12,78.91999999]
[1755502632629,0.06,181.13,181.12,53.38188363]
[1755502634641,0.06,181.13,181.12,45.8512014]
[1755502634815,0.06,181.13,181.12,53.38188363]
[1755502635514,0.06,181.13,181.12,52.69188363]
[1755502635851,0.75,181.13,181.12,45.1612014]
[1755502636159,0.75,181.13,181.12,52.69188363]
[1755502636160,0.06,181.13,181.12,52.69188363]
[1755502636456,0.06,181.13,181.12,53.37188363]
[1755502636745,0.06,181.13,181.12,45.1612014]
[1755502636915,8.28068223,181.13,181.1,39.63999999]
[1755502637107,0.69,181.12,181.1,39.63999999]
[1755502637310,0.69,181.11,181.1,39.63999999]
[1755502637543,7.53068223,181.12,181.1,45.16180118]
[1755502637850,0.69,181.12,181.1,45.16180118]
[1755502638472,8.22068223,181.12,181.09,0.03]
[1755502638623,8.22068223,181.12,181.09,5.55207733]
[1755502639138,0.69,181.11,181.09,5.55207733]
[1755502639649,0.69,181.11,181.09,0.03]
[1755502640019,0.75,181.13,181.09,0.03]
[1755502640262,0.06,181.13,181.12,7.53068223]
[1755502640482,0.06,181.13,181.12,26.68]
[1755502640748,0.06,181.13,181.12,65.63999999]
[1755502640952,0.06,181.13,181.12,73.85068222]
[1755502641625,0.06,181.13,181.12,71.8412014]
[1755502641812,0.06,181.13,181.12,79.37188363]
[1755502646070,0.75,181.13,181.12,45.1612014]
[1755502646272,8.28068223,181.13,181.12,39.63999999]
[1755502647449,0.75,181.13,181.12,39.63999999]
[1755502647893,0.75,181.13,181.11,5.52144508]
[1755502648070,0.69,181.12,181.11,5.52144508]
[1755502648265,0.69,181.12,181.1,5.52171591]
[1755502648451,0.06,181.13,181.1,5.52171591]
[1755502648452,0.69,181.11,181.1,5.52171591]
[1755502649089,0.69,181.11,181.09,45.19210523]
[1755502649303,0.69,181.1,181.09,45.19210523]
[1755502649685,8.22068223,181.1,181.09,0.03]
[1755502650018,0.69,181.1,181.09,0.03]
[1755502650306,8.22068223,181.1,181.09,0.03]
[1755502650602,0.69,181.1,181.09,0.03]
[1755502650901,8.22068223,181.1,181.09,0.03]
[1755502651276,11.92783378,181.1,181.09,0.03]
[1755502651688,8.22068223,181.1,181.09,0.03]
[1755502652078,11.92783378,181.1,181.09,0.03]
[1755502652282,8.22068223,181.1,181.09,0.03]
[1755502652777,11.92783378,181.1,181.09,0.03]
[1755502652974,4.80978868,181.1,181.09,0.03]
[1755502653507,8.51694023,181.1,181.09,0.03]
[1755502654182,0.69,181.1,181.09,0.03]
[1755502655290,11.23958099,181.11,181.09,0.03]
[1755502655580,11.92958099,181.11,181.09,0.03]
[1755502655783,4.39889876,181.11,181.09,0.03]
[1755502656097,0.06,181.12,181.1,8.21068223]
[1755502656405,0.06,181.12,181.11,0.68]
[1755502656772,0.06,181.12,181.11,40.31999999]
[1755502656974,0.06,181.12,181.11,47.85068222]
[1755502657971,0.06,181.12,181.11,53.37218848]
[1755502659990,0.06,181.13,181.12,65.63999998]
[1755502660209,0.06,181.14,181.12,79.61999998]
[1755502660388,0.06,181.14,181.13,8.21068223]
[1755502661221,0.06,181.14,181.13,0.68]
[1755502661410,0.06,181.14,181.13,8.21068223]
[1755502662212,0.06,181.14,181.13,13.73157882]
[1755502667111,0.06,181.14,181.13,6.20089659]
[1755502667302,0.06,181.14,181.13,13.73157882]
[1755502669087,0.06,181.14,181.13,5.52089659]
[1755502669301,0.06,181.14,181.13,79.04157882]
[1755502670533,0.06,181.14,181.13,70.80089659]
[1755502670687,0.06,181.14,181.13,117.9715788]
[1755502671914,0.06,181.14,181.13,118.6815788]
[1755502672497,0.06,181.14,181.13,118.7115788]
[1755502675092,0.06,181.14,181.13,118.0015788]
[1755502675993,0.06,181.14,181.13,118.7115788]
[1755502676527,0.06,181.15,181.13,118.7115788]
[1755502676528,0.06,181.15,181.14,39.57999998]
[1755502676730,0.06,181.15,181.14,47.82068221]
[1755502677509,0.06,181.15,181.14,53.34127401]
[1755502679423,0.06,181.15,181.14,52.63127401]
[1755502680008,0.06,181.15,181.14,45.10059178]
[1755502680215,0.06,181.15,181.14,53.34127401]
[1755502681868,0.06,181.15,181.14,52.63127401]
[1755502682303,0.06,181.15,181.14,45.10059178]
[1755502682502,0.06,181.15,181.14,52.63127401]
[1755502682924,0.73,181.15,181.14,45.10059178]
[1755502683515,0.73,181.15,181.14,52.63127401]
[1755502684014,0.73,181.15,181.14,45.10059178]
[1755502684220,0.73,181.15,181.14,52.63127401]
[1755502684610,0.06,181.15,181.14,52.63127401]
[1755502686120,0.06,181.15,181.14,45.10059178]
[1755502686323,0.06,181.15,181.14,52.63127401]
[1755502691146,0.06,181.15,181.14,45.10059178]
[1755502691436,0.06,181.15,181.14,52.63127401]
[1755502692514,0.06,181.15,181.14,53.34127401]
[1755502694438,0.06,181.15,181.14,78.63127401]
[1755502695023,0.06,181.15,181.14,71.10059178]
[1755502695226,0.06,181.15,181.14,78.63127401]
[1755502695763,0.06,181.15,181.14,71.10059178]
[1755502696047,0.06,181.15,181.14,78.63127401]
[1755502697033,0.72,181.15,181.14,117.89127401]
[1755502697647,0.06,181.15,181.14,117.89127401]
[1755502699818,0.06,181.15,181.14,71.81059178]
[1755502700032,0.06,181.15,181.14,111.07059178]
[1755502700256,0.06,181.15,181.14,117.89127401]
[1755502700953,0.72,181.15,181.14,78.63127401]
[1755502701143,0.72,181.15,181.14,117.89127401]
[1755502702845,0.72,181.15,181.14,110.36059178]
[1755502703044,0.06,181.15,181.14,117.89127401]
[1755502703658,0.06,181.15,181.14,110.36059178]
[1755502703825,0.06,181.15,181.14,117.89127401]
[1755502704026,0.72,181.15,181.14,117.89127401]
[1755502704632,0.06,181.15,181.14,92.60127401]
[1755502704940,0.06,181.15,181.14,91.89127401]
[1755502706054,0.06,181.15,181.14,84.36059178]
[1755502706261,0.72,181.15,181.14,84.36059178]
[1755502706422,0.72,181.15,181.14,91.89127401]
[1755502707359,0.06,181.15,181.14,91.89127401]
[1755502707869,0.06,181.15,181.14,84.36059178]
[1755502708028,0.06,181.15,181.14,91.89127401]
[1755502708543,0.06,181.15,181.14,84.36059178]
[1755502708855,0.06,181.15,181.14,92.60127401]
[1755502709759,0.06,181.15,181.14,91.89127401]
[1755502710748,0.06,181.15,181.14,84.36059178]
[1755502710947,0.06,181.15,181.14,91.89127401]
[1755502712058,0.06,181.15,181.14,92.60127401]
[1755502712639,0.06,181.15,181.14,85.07059178]
[1755502712849,0.06,181.15,181.14,92.60127401]
[1755502716553,0.06,181.15,181.14,91.89127401]
[1755502716758,0.06,181.15,181.14,84.36059178]
[1755502717068,0.06,181.15,181.14,91.89127401]
[1755502720643,0.06,181.15,181.14,92.60127401]
[1755502721348,0.06,181.15,181.14,92.63127401]
[1755502724297,0.06,181.15,181.14,85.10059178]
[1755502724565,0.06,181.15,181.14,92.63127401]
[1755502726370,0.06,181.15,181.14,89.88927483]
[1755502729475,0.06,181.15,181.14,84.39059178]
[1755502729671,0.74,181.15,181.14,84.39059178]
[1755502729972,0.74,181.15,181.14,89.17927483]
[1755502730148,0.74,181.15,181.14,49.91927483]
[1755502730347,0.74,181.15,181.14,89.15927483]
[1755502730774,0.74,181.15,181.14,49.91927483]
[1755502730950,0.74,181.15,181.14,89.15927483]
[1755502731958,0.74,181.15,181.14,84.37059178]
[1755502732158,0.74,181.15,181.14,89.15927483]
[1755502732877,0.06,181.15,181.14,84.37059178]
[1755502733169,0.06,181.15,181.14,49.91927483]
[1755502733571,0.06,181.15,181.14,89.15927483]
[1755502734241,0.06,181.15,181.14,89.84927483]
[1755502740978,0.06,181.15,181.14,49.91927483]
[1755502741186,0.06,181.15,181.14,89.15927483]
[1755502741563,0.06,181.15,181.14,45.13059178]
[1755502741894,0.06,181.15,181.14,44.7905918]
[1755502741895,0.74,181.15,181.14,44.7905918]
[1755502743495,0.74,181.15,181.14,0.03]
[1755502743993,0.74,181.15,181.14,5.5505918]
[1755502744380,0.06,181.15,181.14,13.03539116]
[1755502746190,0.06,181.15,181.14,5.5505918]
[1755502746492,0.06,181.15,181.14,13.03539116]
[1755502746661,0.06,181.15,181.14,13.72539116]
[1755502747683,0.06,181.15,181.14,53.30539114]
[1755502750389,0.06,181.16,181.14,13.72539116]
[1755502750390,1e-08,181.16,181.14,13.72539116]
[1755502750628,1e-08,181.16,181.15,78.22508641]
[1755502750894,1e-08,181.17,181.16,7.48479936]
[1755502751090,1e-08,181.17,181.16,8.17479936]
[1755502752579,1e-08,181.17,181.16,13.69478169]
[1755502763890,1e-08,181.19,181.18,26.0]
[1755502764196,0.06,181.21,181.2,39.57999997]
[1755502764595,0.06,181.21,181.19,4.78554985]
[1755502764797,0.06,181.21,181.2,43.98554985]
[1755502765488,0.78,181.21,181.2,43.98554985]
[1755502765905,0.78,181.21,181.2,49.50431364]
[1755502766295,0.78,181.21,181.2,52.19786855]
[1755502766819,0.06,181.21,181.2,52.19786855]
[1755502768201,0.06,181.21,181.2,91.77786852]
[1755502771724,0.78,181.21,181.2,91.77786852]
[1755502772114,0.78,181.21,181.2,52.57786852]
[1755502772332,0.78,181.21,181.2,91.77786852]
[1755502772631,0.78,181.21,181.2,84.29876376]
[1755502772829,0.78,181.21,181.2,91.77786852]
[1755502773330,0.78,181.21,181.2,86.25910473]
[1755502773493,0.78,181.21,181.2,39.57999997]
[1755502773693,0.78,181.21,181.2,78.77999997]
[1755502775642,0.78,181.21,181.2,39.57999997]
[1755502775795,0.78,181.21,181.2,78.77999997]
[1755502776130,0.78,181.21,181.18,39.2]
[1755502776630,7.47910476,181.19,181.16,0.03]
[1755502776829,7.47910476,181.19,181.16,39.23]
[1755502777041,0.72,181.18,181.16,0.03]
[1755502779935,8.19910476,181.18,181.16,0.03]
[1755502780130,7.47910476,181.17,181.16,0.03]
[1755502780335,8.19910476,181.17,181.16,0.03]
[1755502781715,0.72,181.17,181.16,0.03]
[1755502783174,0.72,181.18,181.16,7.50910476]
[1755502783713,0.72,181.18,181.16,13.02895199]
[1755502784445,0.72,181.18,181.16,5.54984723]
[1755502785918,4.42333018,181.2,181.16,5.54984723]
[1755502786246,0.67,181.19,181.16,45.1298472]
[1755502786838,0.67,181.19,181.16,45.8298472]
[1755502787039,11.91243494,181.21,181.16,45.8298472]
[1755502787242,0.67,181.2,181.16,45.8298472]
[1755502787416,0.67,181.2,181.17,0.7]
[1755502787835,0.67,181.19,181.16,45.1298472]
[1755502788041,8.14910476,181.19,181.16,45.1298472]
[1755502788225,7.47910476,181.19,181.16,45.1298472]
[1755502788442,0.67,181.18,181.16,45.1298472]
[1755502789247,8.14910476,181.2,181.16,45.8298472]
[1755502789461,0.67,181.19,181.16,45.8298472]
[1755502790028,8.20910476,181.21,181.17,0.7]
[1755502790231,11.90949251,181.21,181.17,0.7]
[1755502790438,8.20910476,181.21,181.17,0.7]
[1755502790638,11.90949251,181.21,181.17,0.7]
[1755502790949,8.20910476,181.21,181.17,0.7]
[1755502791253,0.67,181.2,181.18,5.51937299]
[1755502791651,0.67,181.2,181.17,5.51960711]
[1755502792040,11.23949251,181.21,181.17,45.09960708]
[1755502792041,0.67,181.19,181.17,45.09960708]
[1755502792244,0.67,181.19,181.17,39.57999997]
[1755502793641,0.67,181.18,181.17,39.57999997]
[1755502794039,7.47910476,181.2,181.17,39.57999997]
[1755502794268,0.67,181.19,181.17,39.57999997]
[1755502797466,7.47910476,181.2,181.17,39.57999997]
[1755502797760,0.67,181.2,181.17,39.57999997]
[1755502798143,0.67,181.2,181.17,40.27999997]
[1755502798338,0.67,181.2,181.17,39.57999997]
[1755502798535,4.37023706,181.2,181.17,39.57999997]
[1755502798731,0.67,181.2,181.17,39.57999997]
[1755502799134,4.37023706,181.2,181.17,39.57999997]
[1755502799363,0.67,181.2,181.17,39.57999997]
[1755502799661,16.75783316,181.21,181.17,39.57999997]
[1755502799856,0.67,181.19,181.17,39.57999997]
[1755502800364,13.0575961,181.21,181.16,0.03]
[1755502800365,37.84815406,181.18,181.16,0.03]
[1755502800654,34.14910476,181.18,181.16,0.03]
[1755502802759,8.14910476,181.17,181.16,0.03]
[1755502804358,13.66878241,181.17,181.16,0.03]
[1755502806654,8.14910476,181.17,181.16,0.03]
[1755502808646,39.2,181.18,181.16,47.78910473]
[1755502808872,39.24,181.21,181.17,8.17910476]
[1755502809244,39.24,181.21,181.18,0.7]
[1755502809464,39.24,181.21,181.19,0.7]
[1755502810087,39.24,181.21,181.17,6.21946243]
[1755502810375,39.24,181.21,181.18,0.7]
[1755502810578,47.38910476,181.21,181.18,0.7]
[1755502810743,47.38910476,181.21,181.16,52.60900631]
[1755502810744,47.38910476,181.21,181.16,45.82990155]
[1755502811041,3.69188657,181.2,181.17,0.7]
[1755502811466,4.36188657,181.2,181.17,0.7]
[1755502811965,11.84099133,181.2,181.16,39.60999997]
[1755502812270,11.84099133,181.2,181.16,45.82996355]
[1755502812567,4.36188657,181.2,181.16,45.82996355]
[1755502812756,4.36188657,181.2,181.17,0.7]
[1755502812962,3.69188657,181.2,181.17,0.7]
[1755502813145,3.69188657,181.2,181.16,5.54996358]
[1755502813341,4.36188657,181.2,181.17,0.7]
[1755502813670,3.69188657,181.2,181.17,0.7]
[1755502814172,3.69188657,181.2,181.17,6.21964119]
[1755502814370,39.24,181.21,181.18,0.7]
[1755502814967,39.91,181.21,181.17,52.57874592]
[1755502815169,39.91,181.21,181.17,53.27874592]
[1755502815593,47.38910476,181.21,181.18,0.7]
[1755502815768,39.24,181.21,181.18,0.7]
[1755502816086,39.24,181.21,181.19,0.7]
[1755502816290,3.69970719,181.2,181.19,6.21899127]
[1755502816487,39.24,181.21,181.19,13.69809603]
[1755502816488,0.06,181.21,181.19,13.69809603]
[1755502816703,0.06,181.21,181.2,8.15910476]
[1755502816855,0.06,181.21,181.2,47.73910473]
[1755502818359,0.06,181.21,181.2,53.25786852]
[1755502821684,0.06,181.21,181.2,92.41786852]
[1755502826179,0.06,181.21,181.2,52.57786852]
[1755502826383,0.06,181.21,181.2,45.09876376]
[1755502827100,0.06,181.21,181.2,52.57786852]
[1755502827773,0.06,181.21,181.2,53.25786852]
[1755502829910,0.06,181.21,181.2,45.77876376]
[1755502830205,0.06,181.21,181.2,52.57786852]
[1755502831307,0.06,181.21,181.2,53.25786852]
[1755502839831,0.06,181.21,181.2,45.77876376]
[1755502840022,0.06,181.21,181.2,53.25786852]
[1755502841835,0.06,181.21,181.2,55.46885152]
[1755502844140,0.06,181.21,181.2,47.30974676]
[1755502844469,0.06,181.21,181.2,52.57786852]
[1755502845259,0.06,181.21,181.2,54.78885152]
[1755502848573,0.06,181.21,181.2,47.30974676]
[1755502848743,0.06,181.21,181.2,54.78885152]
[1755502850137,0.06,181.21,181.2,55.44885152]
[1755502860749,0.06,181.21,181.2,94.54885152]
[1755502862756,0.06,181.21,181.2,55.44885152]
[1755502863079,0.06,181.21,181.2,94.54885152]
[1755502864246,0.06,181.21,181.2,91.85463422]
[1755502869098,0.06,181.21,181.2,52.75463422]
[1755502869298,0.06,181.21,181.2,91.85463422]
[1755502869871,0.06,181.21,181.2,52.75463422]
[1755502870073,0.06,181.21,181.2,91.85463422]
[1755502870577,0.06,181.21,181.2,91.19463422]
[1755502871097,0.06,181.21,181.2,52.09463422]
[1755502871314,0.73,181.21,181.2,52.09463422]
[1755502871481,0.73,181.21,181.2,91.19463422]
[1755502871994,0.06,181.21,181.2,91.19463422]
[1755502872364,0.06,181.21,181.2,52.09463422]
[1755502872565,0.73,181.21,181.2,91.19463422]
[1755502872760,0.73,181.21,181.2,47.30974676]
[1755502872964,0.73,181.21,181.2,91.19463422]
[1755502873183,0.73,181.21,181.2,88.98365122]
[1755502875394,0.73,181.21,181.2,84.19876376]
[1755502875598,0.73,181.21,181.2,88.98365122]
[1755502878874,0.73,181.21,181.2,39.57999997]
[1755502879073,4.44016618,181.21,181.2,39.57999997]
[1755502880092,0.73,181.21,181.2,39.57999997]
[1755502883475,0.74,181.21,181.2,44.36488743]
[1755502883697,0.74,181.21,181.2,49.88365122]
[1755502884102,0.74,181.21,181.2,45.09876376]
[1755502885841,0.74,181.21,181.2,39.57999997]
[1755502889309,0.06,181.21,181.2,39.57999997]
[1755502889505,0.74,181.21,181.2,39.57999997]
[1755502892091,0.06,181.21,181.2,39.57999997]
[1755502893591,0.06,181.21,181.2,45.09876376]
[1755502893891,0.06,181.21,181.2,45.81876376]
[1755502894405,0.06,181.21,181.2,45.09876376]
[1755502895213,0.06,181.21,181.2,45.81876376]
[1755502895508,0.06,181.21,181.2,45.09876376]
[1755502895919,0.06,181.21,181.2,39.57999997]
[1755502896292,0.06,181.21,181.2,45.09876376]
[1755502896992,0.06,181.21,181.2,45.81876376]
[1755502897788,0.06,181.21,181.2,50.60365122]
[1755502899621,0.74,181.25,181.2,50.60365122]
[1755502899622,0.06,181.25,181.22,15.10621557]
[1755502899811,1e-08,181.27,181.25,15.10621557]
[1755502899996,1e-08,181.27,181.26,58.95110303]
[1755502900194,1e-08,181.27,181.26,192.67110303]
[1755502900421,1e-08,181.27,181.26,201.86634603]
[1755502900792,1e-08,181.27,181.26,142.915243]
[1755502900990,1e-08,181.27,181.26,177.56488746]
[1755502901817,1e-08,181.27,181.26,203.56488746]
[1755502902001,1e-08,181.27,181.26,209.08182445]
[1755502902417,1e-08,181.27,181.26,211.7689601]
[1755502904305,1e-08,181.27,181.26,118.34896007]
[1755502904500,1e-08,181.27,181.26,92.34896007]
[1755502906641,1e-08,181.27,181.26,118.34896007]
[1755502907747,1e-08,181.27,181.26,110.87693696]
[1755502908025,1e-08,181.27,181.26,118.34896007]
[1755502910107,1e-08,181.27,181.26,120.55884307]
[1755502910316,0.06,181.31,181.29,39.51999996]
[1755502910515,0.06,181.31,181.3,46.51202311]
[1755502911007,0.06,181.31,181.3,39.04]
[1755502911353,0.75,181.31,181.3,39.04]
[1755502913318,0.75,181.31,181.29,39.51999996]
[1755502913718,0.06,181.31,181.29,39.51999996]
[1755502914031,0.69,181.3,181.29,39.51999996]
[1755502915615,0.69,181.3,181.29,78.53999996]
[1755502916513,0.69,181.3,181.29,39.51999996]
[1755502916714,8.16202311,181.3,181.29,39.51999996]
[1755502916908,0.69,181.3,181.29,39.51999996]
[1755502917135,8.16202311,181.3,181.29,39.51999996]
[1755502917734,13.67790159,181.3,181.26,39.02]
[1755502918046,13.67790159,181.3,181.25,78.53999996]
[1755502918047,7.47202311,181.28,181.25,78.53999996]
[1755502918224,8.16202311,181.27,181.24,39.02]
[1755502918426,5.51587848,181.3,181.25,5.51724137]
[1755502918427,0.69,181.28,181.25,5.51724137]
[1755502918613,0.69,181.28,181.25,13.65926448]
[1755502918814,0.69,181.3,181.26,47.16202311]
[1755502919041,0.69,181.3,181.26,46.49202311]
[1755502919239,0.69,181.3,181.27,0.67]
[1755502919609,0.06,181.31,181.27,8.14202311]
[1755502919816,0.06,181.31,181.29,7.47202311]
[1755502920434,0.06,181.31,181.3,5.5157198]
[1755502921139,0.75,181.31,181.27,8.14202311]
[1755502921318,0.75,181.31,181.28,39.02]
[1755502921510,0.75,181.31,181.27,8.14202311]
[1755502921720,0.75,181.31,181.28,39.02]
[1755502921916,0.75,181.31,181.28,44.53613222]
[1755502922349,0.75,181.31,181.28,45.20613222]
[1755502922932,0.06,181.31,181.26,6.18693699]
[1755502923122,0.69,181.3,181.27,39.02]
[1755502923321,0.06,181.31,181.27,47.16202311]
[1755502923535,0.75,181.31,181.28,0.67]
[1755502924456,0.06,181.31,181.29,0.67]
[1755502924662,0.06,181.31,181.29,6.18594622]
[1755502925019,0.06,181.31,181.3,8.14202311]
[1755502925823,0.06,181.31,181.29,44.53594622]
[1755502926214,0.06,181.31,181.29,5.51594622]
[1755502926429,0.75,181.31,181.29,44.53594622]
[1755502926844,0.06,181.31,181.29,44.53594622]
[1755502928428,0.06,181.31,181.29,45.20594622]
[1755502928750,0.06,181.31,181.3,0.67]
[1755502929115,0.06,181.31,181.3,39.69]
[1755502929532,0.06,181.31,181.3,47.16202311]
[1755502930031,0.06,181.31,181.3,39.69]
[1755502930538,0.06,181.31,181.3,45.2057198]
[1755502931046,0.06,181.31,181.3,52.67774291]
[1755502931718,0.06,181.31,181.3,45.2057198]
[1755502931919,0.06,181.31,181.3,52.67774291]
[1755502932138,0.06,181.31,181.3,45.1857198]
[1755502933738,0.06,181.31,181.3,44.5157198]
[1755502933933,0.06,181.31,181.29,85.5860185]
[1755502934138,0.06,181.31,181.3,39.0]
[1755502934837,0.06,181.31,181.29,118.4]
[1755502934838,0.75,181.31,181.29,118.4]
[1755502935752,0.06,181.31,181.29,118.4]
[1755502936245,0.06,181.31,181.29,124.61598463]
[1755502939368,34.14202311,181.3,181.27,0.03]
[1755502939535,7.47202311,181.28,181.27,0.03]
[1755502939854,11.16848109,181.28,181.27,0.03]
[1755502940064,17.32595676,181.28,181.27,0.03]
[1755502940558,13.21886912,181.28,181.27,0.03]
[1755502940759,22.84303518,181.28,181.27,0.03]
[1755502943055,17.32670685,181.28,181.27,0.03]
[1755502943658,19.1465772,181.28,181.27,0.03]
[1755502943849,22.84485521,181.28,181.27,0.03]
[1755502944559,76.95107078,181.28,181.27,0.03]
[1755502944861,107.57391829,181.28,181.27,0.03]
[1755502945055,102.95107078,181.28,181.27,0.03]
[1755502945879,107.57391829,181.28,181.27,0.03]
[1755502946052,15.10621557,181.27,181.23,0.03]
[1755502946247,15.10621557,181.25,181.23,0.03]
[1755502946475,55.65852688,181.24,181.23,0.03]
[1755502946656,56.32852688,181.24,181.23,0.03]
[1755502946858,71.43474245,181.24,181.23,0.03]
[1755502947076,75.8546555,181.24,181.23,0.03]
[1755502947383,71.43474245,181.24,181.23,0.03]
[1755502947592,26.0,181.22,181.21,0.03]
[1755502947881,26.0,181.22,181.2,0.03]
[1755502947882,15.10621557,181.21,181.2,0.03]
[1755502948067,37.95320169,181.21,181.2,0.03]
[1755502949067,32.46497593,181.21,181.2,0.03]
[1755502949273,76.94639084,181.21,181.2,0.03]
[1755502949442,86.94639084,181.21,181.2,0.03]
[1755502950082,89.15871884,181.21,181.2,0.03]
[1755502950692,96.63074195,181.21,181.2,0.03]
[1755502950862,89.15871884,181.21,181.2,0.03]
[1755502951180,87.77767626,181.21,181.2,0.03]
[1755502951959,77.77767626,181.21,181.2,0.03]
[1755502952166,87.77767626,181.21,181.2,0.03]
[1755502952364,77.77767626,181.21,181.2,0.03]
[1755502952561,87.77767626,181.21,181.2,0.03]
[1755502952783,77.77767626,181.21,181.2,0.03]
[1755502952964,41.10621557,181.18,181.16,0.03]
[1755502953159,95.39688902,181.18,181.15,0.03]
[1755502953368,15.10621557,181.16,181.15,0.03]
[1755502953660,26.25571573,181.16,181.15,0.03]
[1755502953973,26.92571573,181.16,181.15,0.03]
[1755502954290,23.24823868,181.16,181.15,0.03]